bitfinex/quotes_SOLUSD_20251013
["timestamp","ask_amount","ask_price","bid_price","bid_amount"]
[1760339527110,0.7,198.54,198.51,17.63135357]
[1760339527320,9.44857329,198.55,198.51,17.63135357]
[1760339527521,0.7,198.54,198.51,17.63135357]
[1760339527821,9.44857329,198.55,198.51,17.63135357]
[1760339528023,10.14857329,198.55,198.51,12.59382398]
[1760339528918,0.7,198.54,198.51,12.59382398]
[1760339529913,1.45,198.57,198.51,12.59382398]
[1760339530127,9.44857329,198.55,198.51,12.59382398]
[1760339530306,10.14857329,198.55,198.51,12.59382398]
[1760339530502,1.45,198.57,198.51,12.59382398]
[1760339530715,1.45,198.57,198.51,22.04239727]
[1760339530907,9.44857329,198.56,198.51,12.59382398]
[1760339531122,0.7,198.55,198.51,12.59382398]
[1760339531430,9.44857329,198.56,198.51,12.59382398]
[1760339531431,1.45,198.57,198.53,9.44857329]
[1760339531728,1.45,198.57,198.52,11.53647521]
[1760339531729,1.45,198.57,198.54,9.44857329]
[1760339531910,1.45,198.57,198.54,15.91324361]
[1760339531911,0.0917799,198.55,198.54,15.91324361]
[1760339532104,0.09758216,198.56,198.54,86.0967684]
[1760339532414,0.09758216,198.56,198.55,20.9850485]
[1760339533007,0.09758216,198.56,198.55,20.3250485]
[1760339533925,0.09758216,198.56,198.55,25.36156323]
[1760339534227,10.24615545,198.56,198.55,5.03651473]
[1760339534405,0.79758216,198.56,198.55,5.03651473]
[1760339534713,0.09758216,198.56,198.55,5.03651473]
[1760339534914,0.79758216,198.56,198.55,5.03651473]
[1760339536131,10.24615545,198.56,198.51,5.03752959]
[1760339536315,9.44857329,198.54,198.51,5.03752959]
[1760339536533,9.44857329,198.52,198.51,5.03752959]
[1760339536717,10.15857329,198.52,198.48,5.03829101]
[1760339537025,10.15857329,198.51,198.48,5.03829101]
[1760339537214,9.44857329,198.52,198.48,17.63401853]
[1760339537412,10.15857329,198.52,198.48,17.63401853]
[1760339537815,0.71,198.51,198.48,17.63401853]
[1760339538028,0.71,198.5,198.46,5.03879875]
[1760339538246,20.8,198.55,198.46,5.03879875]
[1760339538414,10.15857329,198.5,198.46,17.63579562]
[1760339538736,9.44857329,198.51,198.46,17.63579562]
[1760339538926,0.71,198.5,198.46,17.63579562]
[1760339539133,10.15857329,198.49,198.46,5.03879875]
[1760339539332,10.15857329,198.48,198.46,5.03879875]
[1760339539632,10.15857329,198.52,198.46,5.03879875]
[1760339539811,9.44857329,198.51,198.46,5.03879875]
[1760339540012,0.71,198.52,198.46,17.63579562]
[1760339540013,9.44857329,198.52,198.46,17.63579562]
[1760339540215,0.71,198.53,198.47,9.44857329]
[1760339540508,0.71,198.53,198.48,9.44857329]
[1760339540714,0.71,198.53,198.47,9.44857329]
[1760339540928,0.71,198.55,198.47,9.44857329]
[1760339541232,0.71,198.55,198.46,18.34579562]
[1760339541233,10.15857329,198.55,198.49,9.44857329]
[1760339541814,10.15857329,198.55,198.48,9.44857329]
[1760339542016,9.44857329,198.49,198.42,9.44857329]
[1760339542329,0.71,198.54,198.42,17.63935086]
[1760339542330,9.44857329,198.46,198.42,17.63935086]
[1760339542505,0.71,198.46,198.42,17.63935086]
[1760339542708,0.71,198.49,198.42,27.08792415]
[1760339542908,9.44857329,198.48,198.42,17.63935086]
[1760339543105,9.44857329,198.46,198.42,17.63935086]
[1760339543326,9.44857329,198.47,198.42,17.63935086]
[1760339543626,9.44857329,198.48,198.42,17.63935086]
[1760339544134,9.44857329,198.48,198.42,22.04810962]
[1760339544330,9.44857329,198.54,198.47,9.44857329]
[1760339544628,0.71,198.53,198.42,12.59953633]
[1760339544812,9.44857329,198.49,198.42,22.04810962]
[1760339545014,9.44857329,198.49,198.42,22.75810962]
[1760339545614,0.71,198.5,198.42,22.75810962]
[1760339545822,20.8,198.53,198.29,214.7]
[1760339545823,0.71,198.49,198.37,9.44857329]
[1760339546036,9.44857329,198.43,198.37,10.15857329]
[1760339546339,0.71,198.46,198.39,14.48914993]
[1760339546544,10.15857329,198.47,198.4,10.87647521]
[1760339546834,10.15857329,198.47,198.41,9.44857329]
[1760339547037,0.71,198.47,198.41,9.44857329]
[1760339547241,10.15857329,198.47,198.41,9.44857329]
[1760339547424,10.15857329,198.5,198.44,9.44857329]
[1760339547605,10.15857329,198.5,198.41,0.71]
[1760339547606,9.44857329,198.45,198.39,17.64201824]
[1760339547811,9.44857329,198.52,198.39,17.64201824]
[1760339547812,9.44857329,198.43,198.39,17.64201824]
[1760339548010,9.44857329,198.45,198.39,27.09059153]
[1760339548233,0.71,198.47,198.41,14.48864183]
[1760339548534,9.44857329,198.45,198.41,5.04006854]
[1760339548841,0.71,198.44,198.41,5.04006854]
[1760339549138,10.15857329,198.47,198.41,14.48864183]
[1760339549635,9.44857329,198.46,198.41,5.04006854]
[1760339549840,0.71,198.45,198.41,5.04006854]
[1760339550433,9.44857329,198.47,198.41,5.04006854]
[1760339550932,9.44857329,198.46,198.41,5.04006854]
[1760339551232,9.44857329,198.47,198.41,15.19864183]
[1760339551425,9.44857329,198.47,198.41,5.04006854]
[1760339551932,0.09957142,198.42,198.41,5.04006854]
[1760339553920,10.25814471,198.42,198.41,5.04006854]
[1760339554124,0.80957142,198.42,198.41,5.04006854]
[1760339554337,0.09957142,198.42,198.41,5.04006854]
[1760339555438,0.09957142,198.42,198.39,27.09059153]
[1760339555738,0.09957142,198.42,198.39,27.80059153]
[1760339556117,0.09957142,198.42,198.4,9.44857329]
[1760339556621,1e-08,198.44,198.41,20.3250485]
[1760339556817,0.10289807,198.46,198.44,10.87647521]
[1760339557024,0.71,198.45,198.39,27.09059153]
[1760339557239,0.71,198.45,198.4,9.44857329]
[1760339557421,9.55147136,198.46,198.41,17.6402399]
[1760339557630,10.26147136,198.46,198.41,17.6402399]
[1760339557826,9.55147136,198.46,198.41,17.6402399]
[1760339558031,0.81289807,198.46,198.41,17.6402399]
[1760339558219,0.10289807,198.46,198.41,27.08881319]
[1760339558422,1.45,198.57,198.44,20.8]
[1760339558423,2.16,198.57,198.44,20.8]
[1760339558625,2.16,198.57,198.49,41.1250485]
[1760339558843,2.16,198.57,198.5,10.87647521]
[1760339559069,2.16,198.57,198.5,20.3250485]
[1760339559220,2.16,198.57,198.53,20.8]
[1760339559418,2.16,198.57,198.54,5.0367684]
[1760339560634,2.16,198.57,198.52,12.59270423]
[1760339560635,1.45,198.57,198.52,17.62998007]
[1760339560830,1.45,198.57,198.53,0.71]
[1760339561423,1.45,198.57,198.52,27.07855336]
[1760339561631,1.45,198.57,198.53,9.44857329]
[1760339562040,1.45,198.57,198.52,27.78855336]
[1760339562428,1.45,198.57,198.52,18.33998007]
[1760339562634,1.45,198.57,198.52,27.78855336]
[1760339563035,2.16,198.57,198.52,17.62998007]
[1760339563452,1.45,198.57,198.52,17.62998007]
[1760339563621,0.71,198.56,198.52,17.62998007]
[1760339564239,1.45,198.57,198.52,17.62998007]
[1760339564445,2.16,198.57,198.52,17.62998007]
[1760339566226,2.16,198.57,198.48,20.8]
[1760339566227,9.44857329,198.53,198.42,5.74981453]
[1760339566427,9.44857329,198.5,198.42,15.19838782]
[1760339566750,9.44857329,198.5,198.43,10.87647521]
[1760339567041,10.11857329,198.49,198.42,17.63935086]
[1760339567232,9.44857329,198.48,198.42,17.63935086]
[1760339567431,10.11857329,198.49,198.42,17.63935086]
[1760339567821,9.44857329,198.48,198.42,17.63935086]
[1760339568025,9.44857329,198.47,198.42,17.63935086]
[1760339568239,10.11857329,198.47,198.42,17.63935086]
[1760339568436,10.11857329,198.47,198.42,12.59953633]
[1760339568634,0.67,198.46,198.42,12.59953633]
[1760339568837,0.67,198.48,198.42,11.59647521]
[1760339569850,0.67,198.48,198.43,5.03956055]
[1760339570047,10.11857329,198.47,198.43,5.03956055]
[1760339570250,9.44857329,198.45,198.38,23.47810114]
[1760339570427,20.8,198.5,198.44,9.44857329]
[1760339570738,9.44857329,198.51,198.44,20.3250485]
[1760339571053,9.44857329,198.51,198.44,10.87647521]
[1760339571241,9.44857329,198.51,198.44,20.3250485]
[1760339571835,0.09574256,198.46,198.45,5.03905265]
[1760339573939,0.0918854,198.48,198.46,10.87647521]
[1760339574146,0.0918854,198.48,198.47,9.44857329]
[1760339574356,0.0918854,198.48,198.46,20.3250485]
[1760339574557,0.0918854,198.48,198.45,17.63668429]
[1760339574558,0.67,198.47,198.45,17.63668429]
[1760339574866,0.0918854,198.48,198.45,17.63668429]
[1760339575026,0.67,198.47,198.45,5.03905265]
[1760339575231,0.67,198.46,198.45,5.03905265]
[1760339575654,9.54045869,198.48,198.42,17.63900563]
[1760339576255,10.21045869,198.48,198.42,17.63900563]
[1760339576950,10.21045869,198.48,198.42,27.08757892]
[1760339577333,10.21045869,198.48,198.42,17.63900563]
[1760339578526,9.54045869,198.48,198.42,17.63900563]
[1760339578730,10.11857329,198.47,198.42,5.03981453]
[1760339578932,9.44857329,198.43,198.4,5.04012542]
[1760339579151,9.44857329,198.41,198.36,28.52073055]
[1760339579353,0.67,198.4,198.36,17.64425534]
[1760339579551,9.44857329,198.41,198.36,17.64425534]
[1760339579859,0.67,198.4,198.36,17.64425534]
[1760339580053,10.11857329,198.42,198.36,17.64425534]
[1760339580560,21.47,198.45,198.38,9.44857329]
[1760339580746,10.11857329,198.45,198.39,17.64201824]
[1760339580949,0.67,198.45,198.4,9.44857329]
[1760339581146,10.11857329,198.47,198.42,9.44857329]
[1760339581339,0.67,198.46,198.41,9.44857329]
[1760339581543,0.0918854,198.48,198.43,9.44857329]
[1760339581755,0.67,198.47,198.4,10.87647521]
[1760339581952,0.0918854,198.48,198.43,9.44857329]
[1760339582336,0.7618854,198.48,198.43,9.44857329]
[1760339582860,0.7618854,198.48,198.42,17.63935086]
[1760339583249,10.11857329,198.47,198.42,17.63935086]
[1760339583455,0.67,198.46,198.42,17.63935086]
[1760339583768,0.67,198.46,198.42,23.98705337]
[1760339583939,0.0918854,198.48,198.45,6.34770251]
[1760339584142,0.0918854,198.48,198.43,11.59647521]
[1760339584143,0.0918854,198.48,198.47,6.34770251]
[1760339584866,0.0918854,198.48,198.45,10.87647521]
[1760339585063,0.0918854,198.48,198.47,6.34770251]
[1760339585662,0.0918854,198.48,198.44,18.35757306]
[1760339585978,0.0918854,198.48,198.44,23.98527557]
[1760339586269,0.0918854,198.48,198.47,6.34770251]
[1760339586453,0.0918854,198.48,198.46,6.34770251]
[1760339586654,0.0918854,198.48,198.45,17.22417772]
[1760339586951,0.0918854,198.48,198.46,5.03879875]
[1760339587146,0.0918854,198.48,198.46,11.38650126]
[1760339587546,0.0918854,198.48,198.46,5.03879875]
[1760339587766,0.67,198.47,198.46,5.03879875]
[1760339588061,1.45,198.57,198.49,31.67647521]
[1760339588359,1.45,198.57,198.56,17.22417772]
[1760339589115,1.45,198.57,198.51,12.5933993]
[1760339589378,6.34770251,198.56,198.52,5.03727584]
[1760339589548,7.01770251,198.56,198.52,5.03727584]
[1760339589875,1.45,198.57,198.49,6.34770251]
[1760339589876,6.34770251,198.54,198.49,5.03803718]
[1760339590260,1.45,198.57,198.53,6.34770251]
[1760339590564,7.01770251,198.56,198.5,10.87647521]
[1760339590945,6.34770251,198.54,198.49,17.63313013]
[1760339591139,0.67,198.54,198.49,23.98083264]
[1760339591364,1.45,198.57,198.53,6.34770251]
[1760339591569,1.45,198.57,198.54,6.34770251]
[1760339591955,0.09867681,198.55,198.54,6.34770251]
[1760339593162,0.09867681,198.55,198.54,5.0367684]
[1760339593390,0.76867681,198.55,198.54,5.0367684]
[1760339593784,0.09867681,198.55,198.54,5.0367684]
[1760339594191,0.76867681,198.55,198.5,22.26196109]
[1760339594370,0.67,198.54,198.5,34.85641952]
[1760339594697,0.09867681,198.55,198.51,6.34770251]
[1760339594866,0.76867681,198.55,198.51,6.34770251]
[1760339595067,0.76867681,198.55,198.52,5.03727584]
[1760339595385,0.67,198.54,198.52,5.03727584]
[1760339596290,0.09867681,198.55,198.52,5.03727584]
[1760339596613,0.80867681,198.55,198.47,0.53]
[1760339596768,0.80867681,198.55,198.48,10.87647521]
[1760339596967,0.80867681,198.55,198.51,6.34770251]
[1760339597496,0.71,198.54,198.51,6.34770251]
[1760339597799,7.05770251,198.53,198.47,11.38624737]
[1760339598167,0.71,198.53,198.48,6.34770251]
[1760339598368,0.71,198.52,198.49,6.34770251]
[1760339599079,0.09867681,198.55,198.51,6.34770251]
[1760339599279,0.09867681,198.55,198.52,11.38497835]
[1760339599585,0.80867681,198.55,198.52,11.38497835]
[1760339600088,0.09867681,198.55,198.52,5.03727584]
[1760339600385,0.09867681,198.55,198.54,6.34770251]
[1760339601393,0.09867681,198.55,198.54,11.38447091]
[1760339601563,0.09867681,198.55,198.54,5.0367684]
[1760339601766,0.09867681,198.55,198.54,11.38447091]
[1760339602593,0.09867681,198.55,198.54,5.5667684]
[1760339602789,0.09867681,198.55,198.54,11.91447091]
[1760339602967,0.09867681,198.55,198.54,11.38447091]
[1760339603369,0.80867681,198.55,198.5,6.34770251]
[1760339603565,0.80867681,198.55,198.51,6.34770251]
[1760339603992,0.80867681,198.55,198.5,12.59445843]
[1760339604187,0.80867681,198.55,198.51,6.34770251]
[1760339605381,0.80867681,198.55,198.52,5.03727584]
[1760339606303,0.80867681,198.55,198.52,17.63046544]
[1760339606506,0.09867681,198.55,198.52,17.63046544]
[1760339606874,0.09867681,198.55,198.54,6.34770251]
[1760339607390,0.09867681,198.55,198.54,11.38447091]
[1760339607789,0.09867681,198.55,198.54,5.0367684]
[1760339607990,0.09867681,198.55,198.54,11.38447091]
[1760339608710,0.09867681,198.55,198.54,11.91447091]
[1760339609192,0.10488988,198.56,198.55,10.87647521]
[1760339609193,1e-08,198.56,198.55,10.87647521]
[1760339609369,1e-08,198.56,198.55,22.79069245]
[1760339609570,1e-08,198.56,198.55,16.44298994]
[1760339609796,1e-08,198.56,198.55,22.79069245]
[1760339609971,0.09768931,198.59,198.55,35.38197927]
[1760339610178,0.09768931,198.59,198.58,6.34770251]
[1760339610374,1e-08,198.6,198.58,6.34770251]
[1760339610592,1e-08,198.6,198.59,17.75417772]
[1760339610789,1e-08,198.6,198.59,11.40647521]
[1760339611094,1e-08,198.6,198.59,6.87770251]
[1760339611482,1e-08,198.6,198.59,22.78967799]
[1760339611993,0.10856702,198.6,198.59,5.03550027]
[1760339612202,0.81856702,198.6,198.59,5.03550027]
[1760339612388,0.10856702,198.6,198.59,11.38320278]
[1760339613406,0.10856702,198.6,198.59,22.25967799]
[1760339613604,1e-08,198.6,198.59,22.78967799]
[1760339614687,1e-08,198.61,198.6,10.87647521]
[1760339614899,1e-08,198.61,198.6,17.75417772]
[1760339615087,0.1042275,198.62,198.6,24.10188023]
[1760339615088,1e-08,198.62,198.6,24.10188023]
[1760339615288,1e-08,198.63,198.62,10.87647521]
[1760339615605,1e-08,198.63,198.62,15.91121491]
[1760339615786,1e-08,198.63,198.62,22.25891742]
[1760339615974,1e-08,198.63,198.62,22.78891742]
[1760339616502,1e-08,198.63,198.62,15.91121491]
[1760339617001,1e-08,198.63,198.62,22.25891742]
[1760339617180,1e-08,198.63,198.62,11.38244221]
[1760339617880,0.71000001,198.63,198.61,5.0349932]
[1760339618102,1e-08,198.63,198.62,6.34770251]
[1760339618482,0.71000001,198.63,198.62,6.34770251]
[1760339618693,1e-08,198.63,198.61,5.0349932]
[1760339618878,1e-08,198.63,198.62,17.75417772]
[1760339619198,1e-08,198.63,198.62,10.87647521]
[1760339619398,1e-08,198.63,198.62,17.22417772]
[1760339619802,1e-08,198.63,198.62,10.87647521]
[1760339619990,1e-08,198.63,198.62,22.25891742]
[1760339621206,1e-08,198.63,198.62,15.91121491]
[1760339621409,1e-08,198.63,198.62,22.25891742]
[1760339621797,1e-08,198.63,198.62,22.78891742]
[1760339621991,0.10740867,198.64,198.63,10.87647521]
[1760339621992,1e-08,198.64,198.63,10.87647521]
[1760339622195,1e-08,198.64,198.63,17.22417772]
[1760339622596,1e-08,198.64,198.63,17.75417772]
[1760339622791,1e-08,198.64,198.63,10.87647521]
[1760339622998,1e-08,198.64,198.63,17.22417772]
[1760339623587,1e-08,198.64,198.63,15.91096144]
[1760339623892,1e-08,198.64,198.63,22.25866395]
[1760339625706,1e-08,198.64,198.63,16.44096144]
[1760339625904,1e-08,198.64,198.63,22.25866395]
[1760339628709,0.71000001,198.64,198.63,5.03448623]
[1760339629603,0.71000001,198.64,198.63,11.38218874]
[1760339630109,0.71000001,198.64,198.63,5.03448623]
[1760339630308,0.71000001,198.64,198.62,5.03473451]
[1760339630515,0.71,198.63,198.62,5.03473451]
[1760339630698,0.71,198.63,198.62,11.38243702]
[1760339631128,0.71,198.63,198.62,5.03473451]
[1760339631418,0.71,198.63,198.62,11.38243702]
[1760339631826,0.81717963,198.63,198.62,11.38243702]
[1760339632201,0.81717963,198.63,198.62,5.03473451]
[1760339632402,0.81717963,198.63,198.62,11.38243702]
[1760339632812,0.81717963,198.63,198.62,5.03473451]
[1760339633217,0.10717963,198.63,198.62,11.38243702]
[1760339634010,0.81717963,198.63,198.62,11.38243702]
[1760339634825,0.10717963,198.63,198.62,11.38243702]
[1760339635529,0.10717963,198.63,198.62,22.25891223]
[1760339637531,0.09413673,198.64,198.62,22.78891223]
[1760339637832,1e-08,198.64,198.63,17.75417772]
[1760339638331,1e-08,198.64,198.63,17.22417772]
[1760339638633,1e-08,198.64,198.63,17.75417772]
[1760339639040,1e-08,198.64,198.63,22.78866395]
[1760339639335,1e-08,198.65,198.64,10.87647521]
[1760339639631,0.09867774,198.69,198.64,10.87647521]
[1760339639632,1e-08,198.68,198.64,17.75417772]
[1760339639836,1e-08,198.68,198.67,17.22417772]
[1760339640026,1e-08,198.68,198.64,10.87647521]
[1760339640219,0.71,198.67,198.63,17.6207018]
[1760339640429,0.71,198.66,198.5,10.87647521]
[1760339640618,6.34770251,198.67,198.62,6.34770251]
[1760339640619,0.71,198.65,198.62,6.34770251]
[1760339641117,6.34770252,198.68,198.57,0.53]
[1760339641118,0.71,198.64,198.63,11.38218874]
[1760339641320,0.71,198.64,198.63,5.03448623]
[1760339643725,7.05770251,198.64,198.58,12.58891674]
[1760339643927,0.71,198.63,198.58,18.93661925]
[1760339644144,0.71,198.62,198.58,18.93661925]
[1760339644336,0.71,198.61,198.58,18.93661925]
[1760339644635,5.0334754,198.67,198.58,18.93661925]
[1760339644636,0.71,198.6,198.58,18.93661925]
[1760339644831,0.71,198.59,198.58,23.9723731]
[1760339645444,0.71,198.59,198.58,27.06353847]
[1760339646143,0.71,198.59,198.58,14.47462173]
[1760339646334,0.71,198.59,198.56,5.03606584]
[1760339646524,0.71,198.58,198.56,5.03606584]
[1760339646726,21.51,198.57,198.38,5.04083072]
[1760339646918,0.71,198.56,198.48,9.43886788]
[1760339647117,0.71,198.55,198.46,0.69]
[1760339647349,10.14886788,198.55,198.46,0.69]
[1760339647526,0.71,198.55,198.44,0.69]
[1760339647721,0.71,198.55,198.49,9.43886788]
[1760339648049,0.71,198.54,198.52,9.43886788]
[1760339648220,0.71,198.57,198.53,9.43886788]
[1760339648538,0.71,198.56,198.55,9.43886788]
[1760339648943,0.71,198.56,198.54,9.43886788]
[1760339649442,9.43886788,198.6,198.55,5.03651473]
[1760339650046,0.71,198.59,198.55,5.03651473]
[1760339650450,0.71,198.58,198.55,5.03651473]
[1760339650617,0.71,198.57,198.55,5.03651473]
[1760339650816,0.71,198.56,198.55,5.03651473]
[1760339651024,0.71,198.56,198.53,5.03683943]
[1760339651236,0.71,198.56,198.5,9.43886788]
[1760339651237,0.71,198.55,198.5,14.47665125]
[1760339651441,0.71,198.54,198.49,22.03357151]
[1760339651946,0.10644275,198.5,198.49,12.59470363]
[1760339652141,0.10644275,198.5,198.49,22.03357151]
[1760339652534,0.10644275,198.5,198.49,107.47160869]
[1760339653745,0.10644275,198.5,198.49,98.03274081]
[1760339653945,0.10644275,198.5,198.49,107.47160869]
[1760339654329,0.10644275,198.5,198.49,98.03274081]
[1760339654647,0.10644275,198.5,198.49,107.47160869]
[1760339655149,0.10644275,198.5,198.49,5.03803718]
[1760339655150,0.81644275,198.5,198.49,5.03803718]
[1760339655359,0.81644275,198.5,198.47,85.43835825]
[1760339655536,0.81644275,198.5,198.44,5.03930659]
[1760339655537,10.14886788,198.49,198.44,5.03930659]
[1760339655738,0.71,198.48,198.44,5.03930659]
[1760339656047,10.25531063,198.5,198.44,14.47817447]
[1760339656229,0.10644275,198.5,198.46,9.43886788]
[1760339656432,0.81644275,198.5,198.46,9.43886788]
[1760339656662,0.72,198.49,198.47,5.03854486]
[1760339657547,0.10644275,198.5,198.48,9.43886788]
[1760339657841,0.10644275,198.5,198.49,9.43886788]
[1760339658526,0.82644275,198.5,198.45,5.03905265]
[1760339658732,0.72,198.49,198.46,9.43886788]
[1760339658945,0.10644275,198.5,198.46,9.43886788]
[1760339659243,0.10644275,198.5,198.46,12.59681656]
[1760339659543,0.72,198.49,198.46,12.59681656]
[1760339659753,0.72,198.48,198.46,12.59681656]
[1760339659930,0.72,198.47,198.45,5.03905265]
[1760339660127,0.72,198.46,198.45,5.03905265]
[1760339660327,0.72,198.46,198.39,0.71]
[1760339660545,0.72,198.46,198.42,5.03981453]
[1760339660857,0.72,198.45,198.42,5.03981453]
[1760339661030,0.10644275,198.5,198.42,17.63935086]
[1760339661031,5.144227,198.5,198.42,17.63935086]
[1760339661225,9.43886788,198.47,198.42,17.63935086]
[1760339661527,0.72,198.47,198.42,27.07821874]
[1760339661939,0.82644275,198.5,198.45,9.43886788]
[1760339662331,0.82644275,198.5,198.42,17.63935086]
[1760339662332,0.72,198.49,198.44,9.43886788]
[1760339662539,0.10644275,198.5,198.46,17.63579562]
[1760339662744,0.10644275,198.5,198.49,9.43886788]
[1760339663134,0.10644275,198.5,198.49,10.14886788]
[1760339663750,0.10644275,198.5,198.49,0.71]
[1760339663957,0.10644275,198.5,198.49,9.43886788]
[1760339664141,0.10644275,198.5,198.47,10.87647521]
[1760339664326,0.10644275,198.5,198.49,9.43886788]
[1760339664756,0.10644275,198.5,198.49,14.47690506]
[1760339665056,0.10644275,198.5,198.49,15.18690506]
[1760339666637,1e-08,198.5,198.49,26.06338027]
[1760339666841,1e-08,198.52,198.5,10.87647521]
[1760339667048,1e-08,198.52,198.51,20.31534309]
[1760339667254,1e-08,198.52,198.51,21.02534309]
[1760339668145,0.10296985,198.54,198.52,10.87647521]
[1760339668146,1e-08,198.53,198.52,10.87647521]
[1760339668442,1e-08,198.53,198.52,21.02534309]
[1760339669545,1e-08,198.54,198.52,21.02534309]
[1760339669852,1e-08,198.54,198.53,21.02534309]
[1760339670327,1e-08,198.54,198.53,26.0623652]
[1760339671147,1e-08,198.54,198.53,16.62349732]
[1760339671356,1e-08,198.54,198.53,26.0623652]
[1760339671551,1e-08,198.55,198.54,10.87647521]
[1760339671757,1e-08,198.56,198.54,21.02534309]
[1760339671935,1e-08,198.56,198.55,21.02534309]
[1760339672258,1e-08,198.56,198.55,11.58647521]
[1760339672450,0.09407129,198.58,198.55,29.21427676]
[1760339673145,0.09908047,198.6,198.58,10.87647521]
[1760339673454,0.09908047,198.6,198.59,20.31534309]
[1760339673648,0.09465172,198.61,198.59,21.02534309]
[1760339673968,4.15681914,198.71,198.61,10.87647521]
[1760339673969,0.72,198.68,198.61,10.87647521]
[1760339674132,0.82,198.71,198.63,9.43886788]
[1760339674467,0.82,198.71,198.69,14.4718338]
[1760339674767,0.1,198.71,198.69,5.03296592]
[1760339674929,0.1,198.71,198.7,9.43886788]
[1760339676566,1e-08,198.71,198.7,26.05805572]
[1760339677134,1e-08,198.71,198.7,25.34805572]
[1760339677434,1e-08,198.71,198.7,26.05805572]
[1760339678359,1e-08,198.71,198.7,25.34805572]
[1760339678867,1e-08,198.71,198.7,26.05805572]
[1760339679450,1e-08,198.71,198.7,15.90918784]
[1760339679645,1e-08,198.71,198.7,25.34805572]
[1760339681460,1e-08,198.71,198.7,15.18158051]
[1760339681961,0.1,198.75,198.7,38.6398373]
[1760339682143,0.1,198.75,198.74,9.43886788]
[1760339682344,0.1,198.75,198.74,14.47056758]
[1760339683267,0.1,198.75,198.74,15.90817491]
[1760339683452,0.1,198.75,198.74,25.34704279]
[1760339685246,0.1,198.75,198.74,15.90817491]
[1760339685465,0.1,198.75,198.74,25.34704279]
[1760339686060,0.1,198.75,198.74,14.47056758]
[1760339686642,0.1,198.75,198.74,5.0316997]
[1760339686837,10.19886788,198.75,198.69,17.61504468]
[1760339687042,0.66,198.74,198.69,17.61504468]
[1760339687257,0.66,198.73,198.69,12.58207876]
[1760339687461,0.66,198.72,198.7,9.43886788]
[1760339687662,0.66,198.72,198.69,22.02094664]
[1760339687853,0.66,198.72,198.7,9.43886788]
[1760339688058,0.66,198.74,198.7,9.43886788]
[1760339688249,0.66,198.73,198.49,22.06438471]
[1760339688466,9.43886788,198.71,198.65,9.43886788]
[1760339688646,0.66,198.73,198.7,9.43886788]
[1760339689146,0.66,198.72,198.7,9.43886788]
[1760339689345,0.66,198.72,198.71,5.03245936]
[1760339690567,0.66,198.72,198.69,22.02102174]
[1760339691362,0.66,198.71,198.69,12.58215386]
[1760339691559,0.66,198.7,198.69,12.58215386]
[1760339691756,10.09886788,198.7,198.67,5.03347259]
[1760339691960,9.43886788,198.68,198.62,9.43886788]
[1760339692269,10.09886788,198.67,198.61,27.06134408]
[1760339692564,10.09886788,198.66,198.61,27.06134408]
[1760339692770,0.66,198.65,198.61,27.06134408]
[1760339692952,0.66,198.68,198.61,18.3224762]
[1760339693154,0.66,198.68,198.64,9.43886788]
[1760339693569,0.66,198.67,198.63,9.43886788]
[1760339693775,0.66,198.66,198.63,9.43886788]
[1760339693959,0.66,198.66,198.65,9.43886788]
[1760339695168,0.66,198.66,198.65,14.47284724]
[1760339696357,0.09344044,198.7,198.63,12.58595039]
[1760339696557,0.66,198.66,198.63,12.58595039]
[1760339697077,0.66,198.68,198.63,12.58595039]
[1760339697279,0.66,198.67,198.63,12.58595039]
[1760339697656,0.66,198.67,198.66,14.47259384]
[1760339698980,0.66,198.67,198.66,5.03372596]
[1760339700275,20.8,198.65,198.62,9.43886788]
[1760339700472,0.66,198.64,198.6,14.4740721]
[1760339700670,0.66,198.63,198.6,14.4740721]
[1760339700873,0.66,198.62,198.6,14.4740721]
[1760339701180,0.66,198.62,198.61,9.43886788]
[1760339701362,0.66,198.61,198.6,5.03520422]
[1760339701707,0.66,198.61,198.6,14.4740721]
[1760339701873,0.66,198.61,198.58,12.58896273]
[1760339701874,0.66,198.61,198.58,9.43886788]
[1760339702059,37.61547874,198.69,198.59,9.43886788]
[1760339702060,0.66,198.6,198.59,9.43886788]
[1760339702758,0.66,198.6,198.58,14.4744758]
[1760339702967,0.66,198.59,198.58,14.4744758]
[1760339703261,0.66,198.61,198.58,14.4744758]
[1760339703479,0.66,198.6,198.59,9.43886788]
[1760339703789,0.66,198.64,198.59,9.43886788]